bitfinex-derivatives/quotes_BTCF0:USTF0_20241218
["timestamp","ask_amount","ask_price","bid_price","bid_amount"]
[1734525630872,0.13799323,104790.0,104780.0,0.409566]
[1734525631079,0.1954048,104790.0,104780.0,0.409566]
[1734525631779,0.13799323,104790.0,104780.0,0.409566]
[1734525632382,0.1954048,104790.0,104780.0,0.409566]
[1734525633473,0.13799323,104790.0,104780.0,0.409566]
[1734525633875,0.13799323,104790.0,104780.0,0.46697757]
[1734525634080,0.01107223,104790.0,104780.0,0.46697757]
[1734525634680,0.01107223,104790.0,104780.0,1.96697757]
[1734525635376,0.01107223,104790.0,104780.0,2.50336387]
[1734525635783,0.01107223,104790.0,104780.0,2.80336387]
[1734525637578,0.01107223,104790.0,104780.0,2.50336387]
[1734525637882,0.01107223,104790.0,104780.0,2.4459523]
[1734525638070,0.01107223,104790.0,104780.0,3.14577811]
[1734525638266,0.35268,104810.0,104800.0,0.047717]
[1734525638478,0.36268,104810.0,104800.0,0.46592857]
[1734525638688,0.410392,104810.0,104800.0,0.46592857]
[1734525638975,0.36268,104810.0,104800.0,0.46592857]
[1734525639184,0.36276751,104810.0,104800.0,0.408557]
[1734525639981,0.46789108,104810.0,104800.0,0.408557]
[1734525640183,0.46789108,104810.0,104800.0,1.908557]
[1734525640384,0.46989108,104810.0,104800.0,1.908557]
[1734525640590,0.47089108,104810.0,104800.0,1.908557]
[1734525641184,0.41347951,104810.0,104800.0,1.908557]
[1734525641683,0.41347951,104810.0,104800.0,2.13675825]
[1734525642181,0.41347951,104810.0,104800.0,0.63675825]
[1734525642385,0.48847951,104810.0,104800.0,0.63675825]
[1734525642587,0.48847951,104810.0,104800.0,0.69416982]
[1734525643284,0.48847951,104810.0,104800.0,0.63675825]
[1734525643490,0.48847951,104810.0,104800.0,0.88750873]
[1734525647183,0.48847951,104810.0,104800.0,0.9449203]
[1734525650794,0.48847951,104810.0,104800.0,1.00233187]
[1734525651189,0.48847951,104810.0,104800.0,0.9449203]
[1734525651500,0.44076751,104810.0,104800.0,1.28733454]
[1734525653198,0.08808751,104810.0,104800.0,1.28733454]
[1734525653499,0.13579951,104810.0,104800.0,1.28733454]
[1734525655695,0.08808751,104810.0,104800.0,1.28733454]
[1734525655896,0.01308751,104810.0,104800.0,1.28733454]
[1734525656982,0.00308751,104810.0,104800.0,1.34474611]
[1734525657592,0.00308751,104810.0,104800.0,2.84474611]
[1734525658790,0.00308751,104810.0,104800.0,2.55960698]
[1734525663706,0.00308751,104810.0,104800.0,2.92040698]
[1734525665094,0.05079951,104810.0,104800.0,1.30558384]
[1734525665291,0.10821108,104810.0,104800.0,1.30558384]
[1734525665497,0.54591108,104810.0,104800.0,0.58398384]
[1734525665705,0.18511108,104810.0,104800.0,0.58398384]
[1734525665896,0.12769951,104810.0,104800.0,0.58398384]
[1734525666100,0.54591108,104810.0,104800.0,0.53626684]
[1734525666802,0.54591108,104810.0,104800.0,0.47971251]
[1734525667703,0.54591108,104810.0,104800.0,0.22873917]
[1734525668708,0.56023109,104810.0,104800.0,0.22873917]
[1734525668908,0.7028538,104810.0,104800.0,0.22873917]
[1734525669105,1.06026537,104810.0,104800.0,0.09916694]
[1734525669305,1.07005632,104810.0,104790.0,0.62827415]
[1734525669603,0.67652014,104800.0,104790.0,0.62827415]
[1734525670217,0.97652014,104800.0,104790.0,0.62827415]
[1734525671109,0.047721,104790.0,104770.0,0.39243092]
[1734525671315,0.18063757,104780.0,104770.0,0.33501935]
[1734525671512,0.18071757,104780.0,104770.0,0.33501935]
[1734525671707,0.25511757,104780.0,104770.0,1.83501935]
[1734525672106,0.25511757,104780.0,104770.0,1.54915944]
[1734525672801,0.25511757,104780.0,104770.0,1.55415944]
[1734525673008,0.198706,104780.0,104770.0,1.55715944]
[1734525673223,0.198706,104780.0,104770.0,1.91795944]
[1734525673516,0.00208,104780.0,104770.0,1.97537101]
[1734525673817,0.00208,104780.0,104770.0,2.05257101]
[1734525674406,0.00208,104780.0,104770.0,2.52438488]
[1734525674909,0.049806,104780.0,104770.0,2.52438488]
[1734525676109,0.049806,104780.0,104770.0,2.46697331]
[1734525676308,0.126506,104780.0,104770.0,2.46697331]
[1734525676607,0.12659892,104780.0,104770.0,2.38977331]
[1734525676916,0.12659892,104780.0,104770.0,2.34204531]
[1734525677111,0.19959892,104780.0,104770.0,2.34204531]
[1734525677318,0.64785622,104780.0,104770.0,0.47981387]
[1734525677515,1.02285622,104780.0,104770.0,0.36131387]
[1734525677819,0.047735,104760.0,104750.0,2.21329543]
[1734525679219,0.048735,104760.0,104750.0,2.21629543]
[1734525679411,0.048735,104760.0,104750.0,1.87388119]
[1734525681321,0.049735,104760.0,104750.0,1.87388119]
[1734525681521,0.1371923,104760.0,104750.0,1.87388119]
[1734525681724,0.049735,104760.0,104750.0,1.87388119]
[1734525683613,0.05936216,104760.0,104750.0,1.87388119]
[1734525684718,0.13266216,104760.0,104750.0,1.87388119]
[1734525685114,0.22011946,104760.0,104750.0,1.87388119]
[1734525685410,0.22011946,104760.0,104750.0,1.51308119]
[1734525688614,0.23443947,104760.0,104750.0,1.51308119]
[1734525692727,0.23443947,104760.0,104720.0,0.70321424]
[1734525692728,0.98269677,104760.0,104720.0,0.70321424]
[1734525693026,0.98269677,104760.0,104720.0,0.34241424]
[1734525693027,0.5834626,104730.0,104720.0,0.34241424]
[1734525693531,0.6565626,104730.0,104720.0,0.34241424]
[1734525693733,0.56921712,104730.0,104720.0,0.34241424]
[1734525693917,0.65667442,104730.0,104720.0,0.34241424]
[1734525694123,0.57021712,104730.0,104720.0,0.34341424]
[1734525694532,0.49711712,104730.0,104720.0,0.074]
[1734525694723,0.13631712,104730.0,104720.0,0.074]
[1734525695335,0.13731712,104730.0,104720.0,0.1458]
[1734525697934,0.14716092,104730.0,104720.0,0.1458]
[1734525698730,0.14716092,104730.0,104720.0,0.193553]
[1734525698731,0.04985982,104730.0,104720.0,0.193553]
[1734525699521,0.04985982,104730.0,104720.0,0.554353]
[1734525699723,0.047745,104740.0,104730.0,0.047746]
[1734525699922,0.047745,104740.0,104730.0,0.480846]
[1734525700129,0.1352023,104740.0,104730.0,0.48724599]
[1734525700725,0.13530343,104740.0,104730.0,0.48824599]
[1734525700931,0.13630343,104740.0,104730.0,0.07969999]
[1734525701524,0.04884613,104740.0,104730.0,0.07969999]
[1734525701919,0.04884613,104740.0,104730.0,0.12744799]
[1734525702123,0.13630343,104740.0,104730.0,0.07969999]
[1734525702319,0.49710343,104740.0,104730.0,0.07969999]
[1734525706029,0.49710343,104740.0,104730.0,0.00739999]
[1734525706928,0.57150343,104740.0,104730.0,0.00739999]
[1734525707638,0.04884613,104740.0,104730.0,0.05514799]
[1734525708129,0.04884613,104740.0,104730.0,0.12964799]
[1734525708335,0.06320614,104740.0,104730.0,0.12964799]
[1734525709538,0.06320614,104740.0,104730.0,0.66132247]
[1734525709736,0.04884613,104740.0,104730.0,0.66132247]
[1734525710438,0.18535182,104750.0,104730.0,0.66132247]
[1734525710638,0.11374914,104750.0,104740.0,0.478844]
[1734525710827,0.30399314,104760.0,104750.0,0.047739]
[1734525711036,0.30399314,104760.0,104750.0,0.408539]
[1734525711234,0.30399314,104760.0,104750.0,0.41493899]
[1734525711651,0.30406027,104760.0,104750.0,0.41493899]
[1734525712046,0.04780413,104760.0,104750.0,0.41493899]
[1734525712739,6.713e-05,104760.0,104750.0,0.41493899]
[1734525712947,0.00206713,104760.0,104750.0,0.41493899]
[1734525713146,0.00406713,104760.0,104750.0,0.41493899]
[1734525713340,0.00406713,104760.0,104750.0,0.58581347]
[1734525713850,0.05180213,104760.0,104750.0,0.58581347]
[1734525714147,0.13925943,104760.0,104750.0,0.65821347]
[1734525715451,0.13925943,104760.0,104750.0,0.61047447]
[1734525715750,0.13925943,104760.0,104750.0,0.53807447]
[1734525717243,0.13925943,104760.0,104750.0,0.36719999]
[1734525718246,0.05180213,104760.0,104750.0,0.41493899]
[1734525718445,0.05180213,104760.0,104750.0,0.58581347]
[1734525720054,0.05180213,104760.0,104750.0,0.65991347]
[1734525722662,0.05180213,104760.0,104750.0,0.73281347]
[1734525723357,0.00406713,104760.0,104750.0,0.73281347]
[1734525723563,0.00406713,104760.0,104750.0,0.64939629]
[1734525724865,4e-05,104780.0,104770.0,0.04773]
[1734525725160,4e-05,104780.0,104770.0,0.4959873]
[1734525725562,4e-05,104780.0,104770.0,0.8567873]
[1734525725753,0.00012615,104780.0,104770.0,0.8568273]
[1734525726156,0.00312615,104780.0,104770.0,0.8568273]
[1734525726363,0.00612615,104780.0,104770.0,1.14209105]
[1734525727257,0.00612615,104780.0,104770.0,2.64209105]
[1734525728173,0.00612615,104780.0,104770.0,2.82463305]
[1734525729567,0.00312615,104780.0,104770.0,2.82463305]
[1734525730068,0.00012615,104780.0,104770.0,2.82663305]
[1734525730269,0.35272,104800.0,104790.0,0.047721]
[1734525730461,0.35272,104800.0,104790.0,0.4959783]
[1734525730662,0.35272,104800.0,104790.0,0.5682183]
[1734525730961,0.35272,104800.0,104790.0,0.480761]
[1734525731271,0.3528069,104800.0,104790.0,0.5682183]
[1734525731667,0.0020869,104800.0,104790.0,0.5682183]
[1734525731861,0.0050869,104800.0,104790.0,0.5682183]
[1734525732056,0.0050869,104800.0,104790.0,1.0164756]
[1734525732458,0.0050869,104800.0,104790.0,0.9290183]
[1734525732770,0.0050869,104800.0,104790.0,2.4290183]
[1734525733073,0.0050869,104800.0,104790.0,2.5164756]
[1734525733461,0.0050869,104800.0,104790.0,2.98823181]
[1734525735475,0.01,104820.0,104810.0,0.047712]
[1734525735665,0.01,104820.0,104810.0,0.4959693]
[1734525735861,0.01,104820.0,104810.0,0.4960093]
[1734525736363,0.01011079,104820.0,104810.0,0.4960093]
[1734525737067,0.01311079,104820.0,104810.0,0.4960093]
[1734525737665,0.01511079,104820.0,104810.0,0.5704093]
[1734525738375,0.01311079,104820.0,104810.0,2.0704093]
[1734525738577,0.01511079,104820.0,104810.0,2.0704093]
[1734525739580,0.01411079,104820.0,104810.0,2.0704093]
[1734525740273,0.01411079,104820.0,104810.0,0.5704093]
[1734525740473,0.01411079,104820.0,104810.0,0.58004092]
[1734525741177,0.01411079,104820.0,104810.0,0.65284092]
[1734525743863,0.01411079,104820.0,104810.0,1.01364092]
[1734525744068,0.01411079,104820.0,104810.0,1.08814092]
[1734525745374,0.17248,104830.0,104820.0,0.047707]
[1734525745574,0.17248,104830.0,104820.0,0.5834216]
[1734525745872,0.17248,104830.0,104820.0,0.5834616]
[1734525746268,0.17259675,104830.0,104820.0,0.5834616]
[1734525746470,0.17259675,104830.0,104820.0,0.4960043]
[1734525746668,0.17259675,104830.0,104820.0,0.5834616]
[1734525746872,0.17459675,104830.0,104820.0,0.4960043]
[1734525747078,0.17459675,104830.0,104820.0,0.5834616]
[1734525747576,0.17459675,104830.0,104820.0,0.4960043]
[1734525747779,0.17659675,104830.0,104820.0,0.4960043]
[1734525748571,0.17659675,104830.0,104820.0,0.5834616]
[1734525748779,0.17659675,104830.0,104820.0,0.4960043]
[1734525748982,0.17659675,104830.0,104820.0,0.5834616]
[1734525750265,0.17659675,104830.0,104820.0,0.4960043]
[1734525750679,0.17659675,104830.0,104820.0,0.5834616]
[1734525753883,0.17659675,104830.0,104820.0,2.0834616]
[1734525754074,0.120995,104850.0,104820.0,2.0834616]
[1734525754276,0.120995,104850.0,104840.0,0.4959553]
[1734525755083,0.12106796,104850.0,104840.0,0.4959953]
[1734525755984,0.12106796,104850.0,104840.0,0.408538]
[1734525756178,0.12306796,104850.0,104840.0,0.408538]
[1734525756576,0.12506796,104850.0,104840.0,0.408538]
[1734525756985,0.12306796,104850.0,104840.0,0.408538]
[1734525757286,0.12506796,104850.0,104840.0,0.408538]
[1734525757986,0.21000717,104850.0,104840.0,0.408538]
[1734525760292,0.16231217,104850.0,104840.0,0.4959953]
[1734525761792,0.21000617,104850.0,104840.0,0.4959953]
[1734525762694,0.16231217,104850.0,104840.0,0.4959953]
[1734525763192,0.16231217,104850.0,104840.0,0.50572378]
[1734525763780,0.08901217,104850.0,104840.0,0.50572378]
[1734525763991,0.08901217,104850.0,104840.0,0.86652378]
[1734525764386,0.08901217,104850.0,104840.0,2.36652378]
[1734525764593,0.08901217,104850.0,104840.0,2.53729662]
[1734525765987,0.08901217,104850.0,104840.0,2.76507999]
[1734525765988,0.00407296,104850.0,104840.0,2.76507999]
[1734525766694,0.00207296,104850.0,104840.0,2.76507999]
[1734525767011,0.00407296,104850.0,104840.0,2.76507999]
[1734525767588,0.00307296,104850.0,104840.0,3.13767761]
[1734525767787,0.00307296,104850.0,104840.0,3.05022031]
[1734525768194,0.00307296,104850.0,104840.0,3.13767761]
[1734525768388,0.08493921,104860.0,104840.0,3.18537561]
[1734525768588,0.08493921,104860.0,104850.0,0.5834086]
[1734525768896,0.08493921,104860.0,104850.0,0.8065486]
[1734525769103,0.22703921,104870.0,104850.0,0.8065486]
[1734525769392,0.08493921,104870.0,104860.0,0.4959863]
[1734525769597,0.08503634,104870.0,104860.0,0.4959863]
[1734525770101,0.08503634,104870.0,104860.0,1.9959863]
[1734525770391,0.08503634,104870.0,104860.0,2.16705323]
[1734525771300,0.08703634,104870.0,104860.0,2.16705323]
[1734525771592,0.08803634,104870.0,104860.0,2.22407554]
[1734525772197,0.08703634,104870.0,104860.0,2.22407554]
[1734525772386,0.08803634,104870.0,104860.0,2.22407554]
[1734525773097,0.01,104880.0,104870.0,0.047685]
[1734525773397,0.01,104880.0,104870.0,0.7189823]
[1734525773999,0.01010587,104880.0,104870.0,0.7189823]
[1734525774198,1e-08,104880.0,104870.0,1.20543725]
[1734525774509,1e-08,104880.0,104870.0,1.11797995]
[1734525774800,0.00200001,104880.0,104870.0,1.11797995]
[1734525775400,0.00300001,104880.0,104870.0,1.11797995]
[1734525775600,0.00300001,104880.0,104870.0,2.61797995]
[1734525775793,0.00300001,104880.0,104870.0,2.2189823]
[1734525778002,0.00300001,104880.0,104870.0,2.3064396]
[1734525778296,0.00300001,104880.0,104870.0,2.2189823]
[1734525778503,0.00300001,104880.0,104870.0,2.61719592]
[1734525779706,0.00300001,104880.0,104870.0,2.44653294]
[1734525782405,0.00300001,104880.0,104870.0,2.61706673]
[1734525782604,0.1,104900.0,104870.0,2.70452403]
[1734525782905,0.1,104900.0,104890.0,0.4959733]
[1734525783297,0.1,104900.0,104890.0,1.9959733]
[1734525783609,0.10011982,104900.0,104890.0,2.3567733]
[1734525784405,0.10111982,104900.0,104890.0,2.3567733]
[1734525784798,0.10111982,104900.0,104890.0,2.4281733]
[1734525785199,0.10211982,104900.0,104890.0,2.4281733]
[1734525788404,0.10211982,104900.0,104890.0,2.43762067]
[1734525791908,0.10211982,104900.0,104890.0,2.60815446]
[1734525796413,0.10211982,104900.0,104890.0,2.57794865]
[1734525797110,0.10211982,104900.0,104890.0,2.80549929]
[1734525797413,0.10211982,104900.0,104890.0,2.82487195]
[1734525798309,0.10211982,104900.0,104890.0,2.6768478]
[1734525798516,0.28054231,104900.0,104890.0,2.66740043]
[1734525798711,0.35084231,104900.0,104890.0,2.66740043]
[1734525798903,0.10211982,104900.0,104890.0,1.28190341]
[1734525799104,0.10211982,104900.0,104890.0,1.50220341]
[1734525799318,0.18705903,104900.0,104890.0,3.00220341]
[1734525799914,0.11263218,104900.0,104890.0,3.00220341]
[1734525800302,0.25645163,104910.0,104890.0,3.00520341]
[1734525800508,0.09544673,104920.0,104910.0,0.047667]
[1734525800713,0.09544673,104920.0,104910.0,0.46571849]
[1734525800908,0.09544673,104920.0,104910.0,0.46575849]
[1734525801214,0.09544673,104920.0,104910.0,1.96575849]
[1734525801419,0.09552819,104920.0,104910.0,1.96575849]
[1734525801602,0.09552819,104920.0,104910.0,2.41233179]
[1734525802015,0.09552819,104920.0,104910.0,2.3550803]
[1734525802205,0.15277968,104920.0,104910.0,0.4942803]
[1734525802402,0.09552819,104920.0,104910.0,0.4942803]
[1734525802608,0.09552819,104920.0,104910.0,0.8550803]
[1734525802809,0.20935711,104920.0,104910.0,0.33318771]
[1734525803411,0.21035711,104920.0,104910.0,0.27593622]
[1734525804215,0.12491038,104920.0,104910.0,0.44713509]
[1734525804919,0.12491038,104920.0,104910.0,0.50438658]
[1734525807323,0.12491038,104920.0,104910.0,0.86518658]
[1734525807816,0.12491038,104920.0,104910.0,0.80793509]
[1734525808214,0.24414388,104920.0,104910.0,1.89946809]
[1734525808522,0.24414388,104920.0,104910.0,0.39946809]
[1734525808523,1.10749537,104920.0,104910.0,0.39946809]
[1734525808713,1.05024388,104920.0,104900.0,0.3329458]
[1734525808915,0.53631849,104910.0,104900.0,0.2759229]
[1734525809121,0.53639849,104910.0,104900.0,0.2759229]
[1734525809420,0.83639849,104910.0,104900.0,1.7759229]
[1734525809917,0.779147,104910.0,104900.0,1.7759229]
[1734525810325,0.479147,104910.0,104900.0,1.7799229]
[1734525810515,0.79144677,104910.0,104900.0,1.55267]
[1734525811323,0.79244677,104910.0,104900.0,0.04767]
[1734525811919,0.047671,104900.0,104890.0,1.96572449]
[1734525812118,0.047671,104900.0,104880.0,0.75100729]
[1734525812119,0.047676,104890.0,104880.0,0.6460758]
[1734525812323,0.53167705,104890.0,104880.0,0.2852758]
[1734525812511,1.26355705,104890.0,104880.0,0.2852758]
[1734525813014,0.04768,104880.0,104870.0,0.6937608]
[1734525813415,0.04776,104880.0,104870.0,0.75101229]
[1734525814222,0.04776,104880.0,104870.0,0.39021229]
[1734525814528,0.82306298,104880.0,104870.0,0.12514132]
[1734525814830,0.52245963,104880.0,104870.0,0.06125149]
[1734525815020,0.52245963,104880.0,104870.0,0.004]
[1734525815719,0.82245963,104880.0,104870.0,0.004]
[1734525816027,0.82245963,104880.0,104870.0,0.005]
[1734525816228,0.85118271,104880.0,104870.0,0.005]
[1734525816617,0.93849622,104880.0,104870.0,0.005]
[1734525817724,0.79596804,104880.0,104870.0,0.005]
[1734525818026,0.70865453,104880.0,104870.0,0.005]
[1734525818816,0.79596804,104880.0,104870.0,0.005]
[1734525819011,0.90946333,104880.0,104870.0,0.005]
[1734525819217,0.90946333,104880.0,104870.0,0.004]
[1734525819425,0.91046333,104880.0,104870.0,0.004]
[1734525819825,0.047689,104860.0,104850.0,1.908491]
[1734525820228,0.047769,104860.0,104850.0,1.908491]
[1734525821022,0.047769,104860.0,104850.0,1.909491]
[1734525821727,8e-05,104860.0,104850.0,1.99680451]
[1734525821923,8e-05,104860.0,104850.0,2.06790451]
[1734525822822,8e-05,104860.0,104850.0,2.15521802]
[1734525823028,8e-05,104860.0,104850.0,2.06790451]
[1734525823427,8e-05,104860.0,104850.0,2.07190451]
[1734525824222,8e-05,104860.0,104850.0,1.984591]
[1734525824525,8e-05,104860.0,104850.0,0.484591]
[1734525824722,8e-05,104860.0,104850.0,0.57190451]
[1734525824920,8e-05,104860.0,104850.0,2.07190451]
[1734525825616,0.047769,104860.0,104850.0,1.984591]
[1734525825824,0.047769,104860.0,104850.0,0.484591]
[1734525826320,0.047769,104860.0,104850.0,1.984591]
[1734525829628,0.047769,104860.0,104850.0,2.07190451]
[1734525830029,0.047769,104860.0,104850.0,1.984591]
[1734525830528,0.047769,104860.0,104850.0,2.07190451]
[1734525832634,0.047769,104860.0,104850.0,1.984591]
[1734525833133,8e-05,104860.0,104850.0,2.07190451]
[1734525833330,8e-05,104860.0,104850.0,0.57190451]
[1734525833535,8e-05,104860.0,104850.0,0.65921802]
[1734525833734,8e-05,104860.0,104850.0,0.57190451]
[1734525833928,8e-05,104860.0,104850.0,2.07190451]
[1734525835936,8e-05,104860.0,104850.0,2.15921802]
[1734525836828,9.453e-05,104880.0,104870.0,0.047685]
[1734525837036,9.453e-05,104880.0,104870.0,0.72489851]
[1734525837225,9.453e-05,104880.0,104870.0,0.72493851]
[1734525837431,9.453e-05,104880.0,104870.0,0.998425]
[1734525837938,0.00209453,104880.0,104870.0,0.998425]
[1734525838843,0.04977453,104880.0,104870.0,0.998425]
[1734525840442,0.04877453,104880.0,104870.0,0.998425]
[1734525841044,0.04877453,104880.0,104870.0,1.00822272]
[1734525841247,0.00109453,104880.0,104870.0,1.09553623]
[1734525841945,0.00109453,104880.0,104870.0,2.56550131]
[1734525842842,0.16117229,104890.0,104870.0,2.56550131]
[1734525843049,0.16117229,104890.0,104880.0,0.46575859]
[1734525843345,0.16117229,104890.0,104880.0,0.46579859]
[1734525844045,0.16224378,104890.0,104880.0,0.50751954]
[1734525844346,0.16224378,104890.0,104880.0,0.4442819]
[1734525844347,0.22052237,104890.0,104880.0,0.4442819]
[1734525844747,0.21952237,104890.0,104880.0,0.4442819]
[1734525844947,0.22052237,104890.0,104880.0,0.4442819]
[1734525845151,0.22052237,104890.0,104880.0,0.4919619]
[1734525845341,0.29282237,104890.0,104880.0,0.4919619]
[1734525845541,0.29182237,104890.0,104880.0,0.4919619]
[1734525845741,0.29282237,104890.0,104880.0,0.4919619]
[1734525845942,0.23554378,104890.0,104880.0,0.4919619]
[1734525846357,0.11556678,104890.0,104880.0,0.66653406]
[1734525846943,0.00207149,104890.0,104880.0,0.66653406]
[1734525847245,0.00207149,104890.0,104880.0,0.57924798]
[1734525847935,0.00107149,104890.0,104880.0,0.57924798]
[1734525848746,0.00107149,104890.0,104880.0,0.66653406]
[1734525849142,0.047667,104910.0,104900.0,0.047671]
[1734525849448,0.047667,104910.0,104900.0,0.45023195]
[1734525849650,0.047667,104910.0,104900.0,0.52903195]
[1734525849951,0.51721135,104920.0,104910.0,0.047667]
[1734525850148,0.51732735,104920.0,104910.0,0.047667]
[1734525850451,0.68804307,104920.0,104910.0,0.08942795]
[1734525850652,0.68804307,104920.0,104910.0,1.547707]
[1734525851046,0.30852704,104920.0,104910.0,1.63499308]
[1734525851241,0.26186204,104920.0,104910.0,2.11340621]
[1734525851853,0.20483676,104920.0,104910.0,2.11340621]
[1734525852049,0.12623676,104920.0,104910.0,2.11340621]
[1734525852355,0.12580644,104920.0,104910.0,2.11340621]
[1734525852546,0.12580644,104920.0,104910.0,2.18690621]
[1734525853147,0.012116,104920.0,104910.0,2.18690621]
[1734525853855,0.011116,104920.0,104910.0,2.18690621]
[1734525854154,0.011116,104920.0,104910.0,2.14549308]
[1734525854155,0.012116,104920.0,104910.0,2.14549308]
[1734525855256,0.012116,104920.0,104910.0,2.23277916]
[1734525855556,0.012116,104920.0,104910.0,0.73277916]
[1734525856153,0.012116,104920.0,104910.0,2.23277916]
[1734525856549,0.012116,104920.0,104910.0,2.28365391]
[1734525858652,0.075,104940.0,104930.0,0.047657]
[1734525858857,0.075,104940.0,104930.0,0.49574308]
[1734525859060,0.075,104940.0,104930.0,0.57188308]
[1734525859646,0.07510454,104940.0,104930.0,0.57188308]
[1734525860362,0.07710454,104940.0,104930.0,0.57188308]
[1734525861464,0.12475754,104940.0,104930.0,0.484597]
[1734525862149,0.9601297,104940.0,104930.0,4e-05]
[1734525862455,0.047662,104920.0,104910.0,0.408465]
[1734525862655,0.047662,104920.0,104910.0,0.3608]
[1734525862853,0.047667,104910.0,104900.0,0.48509869]
[1734525863166,0.119847,104910.0,104900.0,0.48509869]
[1734525863465,0.11992754,104910.0,104900.0,0.40989869]
[1734525863767,0.11992754,104910.0,104900.0,0.08908213]
[1734525864066,0.11992754,104910.0,104900.0,0.408469]
[1734525865463,0.11992754,104910.0,104900.0,0.047669]
[1734525867571,0.047671,104900.0,104890.0,0.67598761]
[1734525867871,0.047751,104900.0,104890.0,0.59738761]
[1734525868766,0.047751,104900.0,104890.0,0.59938761]
[1734525870059,0.047751,104900.0,104890.0,0.60338761]
[1734525870260,0.047751,104900.0,104890.0,2.19067369]
[1734525872770,8e-05,104900.0,104890.0,2.19067369]
[1734525875070,8.054e-05,104910.0,104890.0,2.71831119]
[1734525875264,8.054e-05,104910.0,104900.0,0.49575708]
[1734525875474,8.054e-05,104910.0,104900.0,0.57019708]
[1734525875674,8.054e-05,104910.0,104900.0,2.11191069]
[1734525876368,8.054e-05,104910.0,104900.0,2.33954819]
[1734525879261,8.054e-05,104910.0,104900.0,2.42683427]
[1734525879463,0.11369044,104930.0,104920.0,0.047662]
[1734525879672,0.11369044,104930.0,104920.0,0.85654808]
[1734525879878,0.11369044,104930.0,104920.0,1.00788808]
[1734525880581,0.11478738,104930.0,104920.0,1.04960169]
[1734525880787,0.11578738,104930.0,104920.0,1.04960169]
[1734525880977,0.11578738,104930.0,104920.0,1.27723919]
[1734525881174,0.00209694,104930.0,104920.0,1.56242584]
[1734525883685,0.00209694,104930.0,104920.0,1.27723919]
[1734525884891,0.00109694,104930.0,104920.0,1.27723919]
[1734525885991,0.00109694,104930.0,104920.0,1.23552558]
[1734525886192,9.694e-05,104930.0,104920.0,1.23552558]
[1734525886891,9.694e-05,104930.0,104920.0,1.24510262]
[1734525887287,9.694e-05,104930.0,104920.0,2.74510262]
[1734525888993,9.694e-05,104930.0,104920.0,2.78681623]
[1734525890485,9.694e-05,104930.0,104920.0,2.55917873]
[1734525890988,0.04775394,104930.0,104920.0,0.08941561]
[1734525891385,0.04775394,104930.0,104920.0,1.58941561]
[1734525893995,0.04775394,104930.0,104920.0,1.67670169]
[1734525894194,0.11815394,104930.0,104920.0,1.67670169]
[1734525896097,0.11815394,104930.0,104920.0,1.63498808]
[1734525896482,0.11815394,104930.0,104920.0,1.67670169]
[1734525896789,0.11815394,104930.0,104920.0,0.53750169]
[1734525896987,0.11815394,104930.0,104920.0,0.45021561]
[1734525897192,0.11815394,104930.0,104920.0,1.58941561]
[1734525897993,0.11815394,104930.0,104920.0,1.547702]
[1734525898388,0.11815394,104930.0,104920.0,1.908502]
[1734525899100,0.11815394,104930.0,104920.0,1.547702]
[1734525899299,0.11815394,104930.0,104920.0,1.908502]
[1734525900391,0.11815394,104930.0,104920.0,0.408502]
[1734525900899,0.11815394,104930.0,104920.0,1.908502]
[1734525901295,0.20544002,104930.0,104920.0,0.047702]
[1734525901686,0.20544002,104930.0,104920.0,0.408502]
[1734525901687,0.11815394,104930.0,104920.0,0.408502]
[1734525901891,0.11815394,104930.0,104920.0,1.95021561]
[1734525902603,0.23184438,104930.0,104920.0,1.95021561]
[1734525903693,0.11378738,104930.0,104920.0,2.03750169]
[1734525903994,0.11378738,104930.0,104920.0,2.26000169]
[1734525905103,9.694e-05,104930.0,104920.0,2.48763919]
[1734525906504,9.694e-05,104930.0,104920.0,2.54518834]
[1734525907101,0.13504002,104930.0,104920.0,0.68774026]
[1734525907301,0.20974002,104930.0,104920.0,0.68774026]
[1734525907699,0.20974002,104930.0,104920.0,0.32694026]
[1734525907893,0.56182002,104930.0,104920.0,0.32694026]
[1734525908294,0.48885395,104930.0,104920.0,0.32694026]
[1734525908499,0.47453394,104930.0,104920.0,0.37460226]
[1734525908704,0.48885395,104930.0,104920.0,0.37460226]
[1734525909005,0.63096701,104930.0,104920.0,0.08941561]
[1734525910106,0.63096701,104930.0,104920.0,0.53750169]
[1734525910107,0.14221,104930.0,104920.0,0.53750169]
[1734525910313,0.14221,104930.0,104920.0,0.60950169]
[1734525910503,0.14221,104930.0,104920.0,0.56778808]
[1734525911317,0.14221,104930.0,104920.0,0.64448808]
[1734525911605,9.694e-05,104930.0,104920.0,0.92967473]
[1734525913012,9.694e-05,104930.0,104920.0,0.98671206]
[1734525913314,9.694e-05,104930.0,104920.0,2.52674266]
[1734525913510,0.19701242,104950.0,104940.0,0.047653]
[1734525913814,0.19701242,104950.0,104940.0,0.4485236]
[1734525914107,0.19701242,104950.0,104940.0,0.5216236]
[1734525914608,0.19708423,104950.0,104940.0,0.5216236]
[1734525914809,0.12398423,104950.0,104940.0,0.5216236]
[1734525915012,0.12498423,104950.0,104940.0,0.5216236]
[1734525915402,0.12498423,104950.0,104940.0,0.96970968]
[1734525915801,0.12598423,104950.0,104940.0,0.96970968]
[1734525917111,0.01207181,104950.0,104940.0,1.48292328]
[1734525917407,0.01107181,104950.0,104940.0,1.48292328]
[1734525917611,0.01207181,104950.0,104940.0,1.48292328]
[1734525918210,0.01207181,104950.0,104940.0,1.3956372]
[1734525918513,0.01207181,104950.0,104940.0,1.48292328]
[1734525918713,0.01207181,104950.0,104940.0,2.98292328]
[1734525919902,0.01207181,104950.0,104940.0,2.99231666]
[1734525920909,0.01207181,104950.0,104940.0,2.70719799]
[1734525921514,0.01207181,104950.0,104940.0,2.61991191]
[1734525922311,0.01207181,104950.0,104940.0,2.70719799]
[1734525922705,0.01207181,104950.0,104940.0,2.66716739]
[1734525923602,0.01207181,104950.0,104940.0,2.75445347]
[1734525923913,0.01207181,104950.0,104940.0,2.66716739]
[1734525924117,0.00207181,104950.0,104940.0,2.66716739]
[1734525924509,0.00207181,104950.0,104940.0,2.70719799]
[1734525925910,0.00207181,104950.0,104940.0,2.79448407]
[1734525926305,0.00207181,104950.0,104940.0,2.66716739]
[1734525926707,0.00207181,104950.0,104940.0,2.70629733]
[1734525926905,0.00207181,104950.0,104940.0,1.20629733]
[1734525927107,7.181e-05,104950.0,104940.0,1.20629733]
[1734525927412,7.181e-05,104950.0,104940.0,2.991416]
[1734525927914,7.181e-05,104950.0,104940.0,3.07870208]
[1734525928112,0.14304043,104970.0,104960.0,0.047644]
[1734525928317,0.09540043,104970.0,104960.0,0.44757394]
[1734525928506,0.09540043,104970.0,104960.0,0.51921394]
[1734525928708,0.09540043,104970.0,104960.0,0.59331394]
[1734525929025,0.09549614,104970.0,104960.0,0.59331394]
[1734525929407,0.09649614,104970.0,104960.0,0.59331394]